fUST/lending_fUST_20250729
["ID","MTS","AMOUNT","RATE_DAILY","PERIOD"]
[375934355,1753789861821,-1500.0,0.00020068,2]
[375934356,1753789861830,-168.0,0.00020088,2]
[375934357,1753789861840,-203.58229513,0.00020114,2]
[375934358,1753789861848,-168.0,0.00020124,2]
[375934359,1753789861857,-168.0,0.0002015,2]
[375934360,1753789861866,-155.0,0.00020168,2]
[375934361,1753789861876,-3242.3256812,0.00020173,2]
[375934362,1753789861885,-463.335092,0.00020187,2]
[375934363,1753789861895,-151.0,0.00020193,2]
[375934364,1753789861905,-203.58229513,0.00020221,2]
[375934365,1753789861914,-420.0,0.00020225,2]
[375934366,1753789861923,-420.0,0.00020243,2]
[375934367,1753789861933,-1500.0,0.00020268,2]
[375934368,1753789861943,-732.80277878,0.00020268,2]
[375934369,1753789861954,-500.0,0.00020268,2]
[375934370,1753789861963,-505.72343388,0.00020268,2]
[375934371,1753789861974,-596.28347878,0.00020268,2]
[375934372,1753789861984,-323.40389411,0.00020268,2]
[375934373,1753789861993,-1500.0,0.00020268,2]
[375934374,1753789862003,-1500.0,0.00020268,2]
[375934375,1753789862012,-500.0,0.00020268,2]
[375934376,1753789862022,-502.37147298,0.00020268,2]
[375934377,1753789862031,-598.6521222,0.00020268,2]
[375934378,1753789862040,-460.0,0.00020273,2]
[375934379,1753789862052,-531.77,0.00020273,2]
[375934380,1753789862061,-158.62398829,0.00020273,2]
[375934381,1753789862071,-460.0,0.00020273,2]
[375934382,1753789862081,-460.0,0.00020273,2]
[375934383,1753789862093,-460.0,0.00020273,2]
[375934384,1753789862103,-460.0,0.00020273,2]
[375934385,1753789862112,-2951.75,0.00020273,2]
[375934386,1753789862122,-460.0,0.00020273,2]
[375934387,1753789862132,-460.0,0.00020273,2]
[375934388,1753789862142,-460.0,0.00020273,2]
[375934389,1753789862151,-460.0,0.00020273,2]
[375934390,1753789862160,-537.18467328,0.00020273,2]
[375934391,1753789862169,-460.0,0.00020273,2]
[375934392,1753789862178,-460.0,0.00020273,2]
[375934393,1753789862188,-460.0,0.00020273,2]
[375934394,1753789862197,-460.0,0.00020273,2]
[375934395,1753789862206,-460.0,0.00020273,2]
[375934396,1753789862215,-460.0,0.00020273,2]
[375934397,1753789862224,-460.0,0.00020273,2]
[375934398,1753789862233,-1137.75,0.00020273,2]
[375934399,1753789862242,-460.0,0.00020273,2]
[375934400,1753789862252,-988.39,0.00020273,2]
[375934401,1753789862261,-1046.97,0.00020273,2]
[375934402,1753789862270,-151.0,0.00020273,2]
[375934403,1753789862279,-549.29,0.00020273,2]
[375934404,1753789862288,-151.0,0.00020273,2]
[375934405,1753789862298,-460.0,0.00020273,2]
[375934406,1753789862308,-460.0,0.00020273,2]
[375934407,1753789862317,-659.982398,0.00020273,2]
[375934408,1753789862327,-659.982398,0.00020273,2]
[375934409,1753789862336,-460.0,0.00020273,2]
[375934410,1753789862346,-460.0,0.00020273,2]
[375934411,1753789862355,-607.06,0.00020273,2]
[375934412,1753789862365,-460.0,0.00020273,2]
[375934413,1753789862374,-460.0,0.00020273,2]
[375934414,1753789862385,-460.0,0.00020273,2]
[375934415,1753789862394,-1212.83,0.00020273,2]
[375934416,1753789862405,-460.0,0.00020273,2]
[375934417,1753789862414,-151.0,0.00020273,2]
[375934418,1753789862425,-151.0,0.00020273,2]
[375934419,1753789862435,-298.776502,0.00020273,2]
[375934420,1753789862444,-460.0,0.00020273,2]
[375934421,1753789862453,-460.0,0.00020273,2]
[375934422,1753789862462,-298.776502,0.00020273,2]
[375934423,1753789862472,-483.89,0.00020273,2]
[375934424,1753789862482,-460.0,0.00020273,2]
[375934425,1753789862491,-460.0,0.00020273,2]
[375934426,1753789862501,-460.0,0.00020273,2]
[375934427,1753789862511,-460.0,0.00020273,2]
[375934428,1753789862520,-460.0,0.00020273,2]
[375934429,1753789862529,-460.0,0.00020273,2]
[375934430,1753789862538,-151.0,0.00020273,2]
[375934431,1753789862548,-151.0,0.00020273,2]
[375934432,1753789862557,-520.19,0.00020273,2]
[375934433,1753789862566,-460.0,0.00020273,2]
[375934434,1753789862576,-460.0,0.00020273,2]
[375934435,1753789862586,-460.0,0.00020273,2]
[375934436,1753789862599,-460.0,0.00020273,2]
[375934437,1753789862609,-460.0,0.00020273,2]
[375934438,1753789862618,-460.0,0.00020273,2]
[375934439,1753789862628,-460.0,0.00020273,2]
[375934440,1753789862637,-460.0,0.00020273,2]
[375934441,1753789862646,-460.0,0.00020273,2]
[375934442,1753789862656,-460.0,0.00020273,2]
[375934443,1753789862666,-1191.09,0.00020273,2]
[375934444,1753789862676,-460.0,0.00020273,2]
[375934445,1753789862686,-460.0,0.00020273,2]
[375934446,1753789862695,-458.6307424,0.00020273,2]
[375934447,1753789862705,-460.0,0.00020273,2]
[375934448,1753789862715,-641.57,0.00020273,2]
[375934449,1753789862723,-460.0,0.00020273,2]
[375934450,1753789862733,-460.0,0.00020273,2]
[375934451,1753789862743,-463.56075331,0.00020273,2]
[375934452,1753789862754,-337.87244725,0.00020273,2]
[375934453,1753789862763,-530.05406527,0.00020273,2]
[375934454,1753789862772,-460.0,0.00020273,2]
[375934455,1753789862782,-535.87,0.00020273,2]
[375934456,1753789862792,-460.0,0.00020273,2]
[375934457,1753789862803,-460.0,0.00020273,2]
[375934458,1753789862813,-460.0,0.00020273,2]
[375934459,1753789862824,-460.0,0.00020273,2]
[375934460,1753789862835,-460.0,0.00020273,2]
[375934461,1753789862844,-460.0,0.00020273,2]
[375934462,1753789862854,-598.64,0.00020273,2]
[375934463,1753789862864,-460.0,0.00020273,2]
[375934464,1753789862874,-9380.1,0.00020273,2]
[375934465,1753789862884,-460.0,0.00020273,2]
[375934466,1753789862894,-460.0,0.00020273,2]
[375934467,1753789862903,-441.57242035,0.00020273,2]
[375934468,1753789862912,-460.0,0.00020273,2]
[375934469,1753789862922,-460.0,0.00020273,2]
[375934470,1753789862931,-460.0,0.00020273,2]
[375934471,1753789862941,-460.0,0.00020273,2]
[375934472,1753789862950,-1276.59,0.00020273,2]
[375934473,1753789862959,-460.0,0.00020273,2]
[375934474,1753789862969,-928.19,0.00020273,2]
[375934475,1753789862978,-460.0,0.00020273,2]
[375934476,1753789862987,-460.0,0.00020273,2]
[375934477,1753789862996,-460.0,0.00020273,2]
[375934478,1753789863006,-846.71,0.00020273,2]
[375934479,1753789863015,-460.0,0.00020273,2]
[375934480,1753789863024,-460.0,0.00020273,2]
[375934481,1753789863034,-460.0,0.00020273,2]
[375934482,1753789863043,-2693.2,0.00020273,2]
[375934483,1753789863053,-460.0,0.00020273,2]
[375934484,1753789863064,-462.76788314,0.00020273,2]
[375934485,1753789863073,-825.13,0.00020273,2]
[375934486,1753789863083,-460.0,0.00020273,2]
[375934487,1753789863093,-460.0,0.00020273,2]
[375934488,1753789863102,-460.0,0.00020273,2]
[375934489,1753789863112,-617.47,0.00020273,2]
[375934490,1753789863121,-460.0,0.00020273,2]
[375934491,1753789863131,-837.76,0.00020273,2]
[375934492,1753789863141,-2092.34,0.00020273,2]
[375934493,1753789863151,-460.0,0.00020273,2]
[375934494,1753789863161,-460.0,0.00020273,2]
[375934495,1753789863171,-460.0,0.00020273,2]
[375934496,1753789863180,-460.0,0.00020273,2]
[375934497,1753789863190,-460.0,0.00020273,2]
[375934498,1753789863200,-460.0,0.00020273,2]
[375934499,1753789863211,-460.0,0.00020273,2]
[375934500,1753789863221,-460.0,0.00020273,2]
[375934501,1753789863232,-867.33,0.00020273,2]
[375934502,1753789863242,-460.0,0.00020273,2]
[375934503,1753789863252,-460.0,0.00020273,2]
[375934504,1753789863262,-589.02,0.00020273,2]
[375934505,1753789863271,-1155.43,0.00020273,2]
[375934506,1753789863280,-460.0,0.00020273,2]
[375934507,1753789863289,-460.0,0.00020273,2]
[375934508,1753789863299,-4863.03,0.00020273,2]
[375934509,1753789863309,-462.60650812,0.00020273,2]
[375934510,1753789863319,-460.0,0.00020273,2]
[375934511,1753789863329,-460.0,0.00020273,2]
[375934512,1753789863338,-460.0,0.00020273,2]
[375934513,1753789863347,-460.0,0.00020273,2]
[375934514,1753789863357,-3727.89,0.00020273,2]
[375934515,1753789863367,-460.0,0.00020273,2]
[375934516,1753789863376,-726.78,0.00020273,2]
[375934517,1753789863386,-460.0,0.00020273,2]
[375934518,1753789863395,-460.0,0.00020273,2]
[375934519,1753789863405,-460.0,0.00020273,2]
[375934520,1753789863414,-460.0,0.00020273,2]
[375934521,1753789863423,-460.0,0.00020273,2]
[375934522,1753789863551,-945.31,0.00020273,2]
[375934523,1753789863561,-460.0,0.00020273,2]
[375934524,1753789863571,-699.09,0.00020273,2]
[375934525,1753789863580,-463.30510584,0.00020273,2]
[375934526,1753789863593,-174.4588525,0.00020273,2]
[375934527,1753789863604,-460.0,0.00020273,2]
[375934528,1753789863614,-1744.36,0.00020273,2]
[375934529,1753789863629,-464.86997175,0.00020273,2]
[375934530,1753789863640,-897.47,0.00020273,2]
[375934531,1753789863650,-460.0,0.00020273,2]
[375934532,1753789863661,-460.0,0.00020273,2]
[375934533,1753789863673,-462.29192321,0.00020273,2]
[375934534,1753789863684,-651.49,0.00020273,2]
[375934535,1753789863694,-460.0,0.00020273,2]
[375934536,1753789863704,-460.0,0.00020273,2]
[375934537,1753789863714,-460.0,0.00020273,2]
[375934538,1753789863724,-544.90644396,0.00020273,2]
[375934539,1753789863734,-460.0,0.00020273,2]
[375934540,1753789863743,-461.59118345,0.00020273,2]
[375934541,1753789863753,-460.0,0.00020273,2]
[375934542,1753789863763,-3167.08,0.00020273,2]
[375934543,1753789863773,-460.0,0.00020273,2]
[375934544,1753789863783,-2562.78,0.00020273,2]
[375934545,1753789863792,-460.0,0.00020273,2]
[375934546,1753789863803,-460.0,0.00020273,2]
[375934547,1753789863814,-460.0,0.00020273,2]
[375934548,1753789863825,-460.0,0.00020273,2]
[375934549,1753789863835,-460.0,0.00020273,2]
[375934550,1753789863845,-460.0,0.00020273,2]
[375934551,1753789863858,-460.0,0.00020273,2]
[375934552,1753789863867,-4276.31,0.00020273,2]
[375934553,1753789863877,-460.0,0.00020273,2]
[375934554,1753789863886,-460.0,0.00020273,2]
[375934555,1753789863896,-460.0,0.00020273,2]
[375934556,1753789863906,-460.0,0.00020273,2]
[375934557,1753789863915,-460.0,0.00020273,2]
[375934558,1753789863925,-460.0,0.00020273,2]
[375934559,1753789863934,-460.0,0.00020273,2]
[375934560,1753789863943,-460.0,0.00020273,2]
[375934561,1753789863953,-460.0,0.00020273,2]
[375934562,1753789863962,-460.0,0.00020273,2]
[375934563,1753789863972,-1229.01,0.00020273,2]
[375934564,1753789863982,-460.0,0.00020273,2]
[375934565,1753789863992,-460.0,0.00020273,2]
[375934566,1753789864002,-1266.27,0.00020273,2]
[375934567,1753789864012,-460.0,0.00020273,2]
[375934568,1753789864021,-460.0,0.00020273,2]
[375934569,1753789864031,-460.0,0.00020273,2]
[375934570,1753789864041,-460.0,0.00020273,2]
[375934571,1753789864050,-538.69,0.00020273,2]
[375934572,1753789864060,-460.0,0.00020273,2]
[375934573,1753789864071,-460.0,0.00020273,2]
[375934574,1753789864081,-460.0,0.00020273,2]
[375934575,1753789864091,-460.0,0.00020273,2]
[375934576,1753789864101,-460.0,0.00020273,2]
[375934577,1753789864111,-460.0,0.00020273,2]
[375934578,1753789864121,-2580.95,0.00020273,2]
[375934579,1753789864130,-598.73,0.00020273,2]
[375934580,1753789864140,-460.0,0.00020273,2]
[375934581,1753789864150,-833.59,0.00020273,2]
[375934582,1753789864160,-1327.36,0.00020273,2]
[375934583,1753789864170,-460.0,0.00020273,2]
[375934584,1753789864179,-3072.41,0.00020273,2]
[375934585,1753789864189,-460.0,0.00020273,2]
[375934586,1753789864198,-460.0,0.00020273,2]
[375934587,1753789864209,-460.0,0.00020273,2]
[375934588,1753789864219,-460.0,0.00020273,2]
[375934589,1753789864229,-460.0,0.00020273,2]
[375934590,1753789864238,-460.0,0.00020273,2]
[375934591,1753789864248,-460.0,0.00020273,2]
[375934592,1753789864258,-460.0,0.00020273,2]
[375934593,1753789864270,-573.24,0.00020273,2]
[375934594,1753789864279,-737.52,0.00020273,2]
[375934595,1753789864288,-627.39,0.00020273,2]
[375934596,1753789864298,-460.0,0.00020273,2]
[375934597,1753789864307,-460.0,0.00020273,2]
[375934598,1753789864316,-1255.62,0.00020273,2]
[375934599,1753789864327,-460.0,0.00020273,2]
[375934600,1753789864338,-460.0,0.00020273,2]
[375934601,1753789864347,-670.19,0.00020273,2]
[375934602,1753789864357,-914.73,0.00020273,2]
[375934603,1753789864366,-460.0,0.00020273,2]
[375934604,1753789864376,-1060.03,0.00020273,2]
[375934605,1753789864386,-460.0,0.00020273,2]
[375934606,1753789864396,-8381.75,0.00020273,2]
[375934607,1753789864409,-460.0,0.00020273,2]
[375934608,1753789864419,-460.0,0.00020273,2]
[375934609,1753789864429,-3580.4,0.00020273,2]
[375934610,1753789864439,-461.67551966,0.00020273,2]
[375934611,1753789864453,-460.0,0.00020273,2]
[375934612,1753789864463,-460.0,0.00020273,2]
[375934613,1753789864473,-460.0,0.00020273,2]
[375934614,1753789864483,-1186.04,0.00020273,2]
[375934615,1753789864493,-460.0,0.00020273,2]
[375934616,1753789864502,-460.0,0.00020273,2]
[375934617,1753789864512,-460.0,0.00020273,2]
[375934618,1753789864521,-460.0,0.00020273,2]
[375934619,1753789864531,-4077.9,0.00020273,2]
[375934620,1753789864540,-879.31,0.00020273,2]
[375934621,1753789864551,-460.0,0.00020273,2]
[375934622,1753789864560,-460.0,0.00020273,2]
[375934623,1753789864570,-1017.32,0.00020273,2]
[375934624,1753789864579,-460.0,0.00020273,2]
[375934625,1753789864592,-460.0,0.00020273,2]
[375934626,1753789864602,-460.0,0.00020273,2]
[375934627,1753789864612,-1651.12,0.00020305,3]
[375934628,1753789864621,-825.56,0.00020305,3]
[375934629,1753789864631,-412.78,0.00020305,3]
[375934630,1753789864641,-508.56017954,0.00020321,2]
[375934631,1753789864651,-500.0,0.00020321,2]
[375934632,1753789864661,-1000.0,0.00020321,2]
[375934633,1753789864673,-500.0,0.00020321,2]
[375934634,1753789864683,-1000.0,0.00020321,2]
[375934635,1753789864693,-500.0,0.00020321,2]
[375934636,1753789864702,-203.58229513,0.00020329,3]
[375934637,1753789864712,-168.0,0.00020332,2]
[375934638,1753789864721,-168.0,0.00020394,2]
[375934639,1753789864731,-203.58229513,0.00020436,3]
[375934640,1753789864741,-420.0,0.00020529,2]
[375934641,1753789864751,-420.0,0.00020529,2]
[375934642,1753789864761,-1680.0,0.0002053,2]
[375934643,1753789864771,-260.0,0.00020533,2]
[375934644,1753789864781,-203.58229513,0.00020543,3]
[375934645,1753789864791,-460.0,0.00020547,2]
[375934646,1753789864803,-531.77,0.00020547,2]
[375934647,1753789864812,-151.0,0.00020547,2]
[375934648,1753789864822,-460.0,0.00020547,2]
[375934649,1753789864831,-460.0,0.00020547,2]
[375934650,1753789864841,-460.0,0.00020547,2]
[375934651,1753789864851,-460.0,0.00020547,2]
[375934652,1753789864860,-2951.75,0.00020547,2]
[375934653,1753789864870,-460.0,0.00020547,2]
[375934654,1753789864879,-460.0,0.00020547,2]
[375934655,1753789864889,-460.0,0.00020547,2]
[375934656,1753789864898,-460.0,0.00020547,2]
[375934657,1753789864908,-460.0,0.00020547,2]
[375934658,1753789864917,-460.0,0.00020547,2]
[375934659,1753789864927,-460.0,0.00020547,2]
[375934660,1753789864938,-460.0,0.00020547,2]
[375934661,1753789864948,-460.0,0.00020547,2]
[375934662,1753789864959,-460.0,0.00020547,2]
[375934663,1753789864968,-460.0,0.00020547,2]
[375934664,1753789864978,-1137.75,0.00020547,2]
[375934665,1753789864987,-460.0,0.00020547,2]
[375934666,1753789864997,-988.39,0.00020547,2]
[375934667,1753789865006,-1046.97,0.00020547,2]
[375934668,1753789865016,-549.29,0.00020547,2]
[375934669,1753789865025,-460.0,0.00020547,2]
[375934670,1753789865035,-460.0,0.00020547,2]
[375934671,1753789865044,-384.18390387,0.00020547,2]
[375934672,1753789865055,-460.0,0.00020547,2]
[375934673,1753789865064,-869.538,0.00020547,2]
[375934674,1753789865073,-607.06,0.00020547,2]
[375934675,1753789865083,-460.0,0.00020547,2]
[375934676,1753789865093,-1212.83,0.00020547,2]
[375934677,1753789865102,-460.0,0.00020547,2]
[375934678,1753789865112,-434.52952025,0.00020547,2]
[375934679,1753789865122,-483.89,0.00020547,2]
[375934680,1753789865131,-487.35553279,0.00020547,2]
[375934681,1753789865141,-151.0,0.00020547,2]
[375934682,1753789865150,-460.0,0.00020547,2]
[375934683,1753789865160,-151.0,0.00020547,2]
[375934684,1753789865169,-460.0,0.00020547,2]
[375934685,1753789865186,-460.0,0.00020547,2]
[375934686,1753789865200,-511.40957941,0.00020547,2]
[375934687,1753789865210,-460.0,0.00020547,2]
[375934688,1753789865220,-520.19,0.00020547,2]
[375934689,1753789865230,-151.0,0.00020547,2]
[375934690,1753789865241,-151.0,0.00020547,2]
[375934691,1753789865251,-151.0,0.00020547,2]
[375934692,1753789865261,-460.0,0.00020547,2]
[375934693,1753789865271,-326.90425023,0.00020547,2]
[375934694,1753789865281,-460.0,0.00020547,2]
[375934695,1753789865291,-151.0,0.00020547,2]
[375934696,1753789865301,-466.88179882,0.00020547,2]
[375934697,1753789865310,-460.0,0.00020547,2]
[375934698,1753789865320,-460.0,0.00020547,2]
[375934699,1753789865329,-460.0,0.00020547,2]
[375934700,1753789865339,-460.0,0.00020547,2]
[375934701,1753789865349,-460.0,0.00020547,2]
[375934702,1753789865358,-1191.09,0.00020547,2]
[375934703,1753789865368,-460.0,0.00020547,2]
[375934704,1753789865378,-460.0,0.00020547,2]
[375934705,1753789865388,-460.0,0.00020547,2]
[375934706,1753789865398,-641.57,0.00020547,2]
[375934707,1753789865408,-460.0,0.00020547,2]
[375934708,1753789865418,-212.09822385,0.00020547,2]
[375934709,1753789865428,-460.0,0.00020547,2]
[375934710,1753789865437,-535.87,0.00020547,2]
[375934711,1753789865447,-460.0,0.00020547,2]
[375934712,1753789865458,-460.0,0.00020547,2]
[375934713,1753789865468,-460.0,0.00020547,2]
[375934714,1753789865478,-460.0,0.00020547,2]
[375934715,1753789865487,-598.64,0.00020547,2]
[375934716,1753789865498,-460.0,0.00020547,2]
[375934717,1753789865508,-9380.1,0.00020547,2]
[375934718,1753789865518,-460.0,0.00020547,2]
[375934719,1753789865528,-460.0,0.00020547,2]
[375934720,1753789865538,-460.0,0.00020547,2]
[375934721,1753789865548,-460.0,0.00020547,2]
[375934722,1753789865558,-460.0,0.00020547,2]
[375934723,1753789865567,-1276.59,0.00020547,2]
[375934724,1753789865577,-460.0,0.00020547,2]
[375934725,1753789865587,-928.19,0.00020547,2]
[375934726,1753789865601,-460.0,0.00020547,2]
[375934727,1753789865610,-460.0,0.00020547,2]
[375934728,1753789865620,-460.0,0.00020547,2]
[375934729,1753789865631,-846.71,0.00020547,2]
[375934730,1753789865641,-460.0,0.00020547,2]
[375934731,1753789865651,-2693.2,0.00020547,2]
[375934732,1753789865660,-460.0,0.00020547,2]
[375934733,1753789865672,-825.13,0.00020547,2]
[375934734,1753789865682,-440.0,0.00020547,2]
[375934735,1753789865692,-460.0,0.00020547,2]
[375934736,1753789865702,-151.0,0.00020547,2]
[375934737,1753789865712,-617.47,0.00020547,2]
[375934738,1753789865721,-460.0,0.00020547,2]
[375934739,1753789865732,-837.76,0.00020547,2]
[375934740,1753789865743,-2092.34,0.00020547,2]
[375934741,1753789865753,-460.0,0.00020547,2]
[375934742,1753789865763,-460.0,0.00020547,2]
[375934743,1753789865773,-460.0,0.00020547,2]
[375934744,1753789865783,-460.0,0.00020547,2]
[375934745,1753789865793,-460.0,0.00020547,2]
[375934746,1753789865805,-867.33,0.00020547,2]
[375934747,1753789865815,-460.0,0.00020547,2]
[375934748,1753789865824,-589.02,0.00020547,2]
[375934749,1753789865834,-460.0,0.00020547,2]
[375934750,1753789865845,-460.0,0.00020547,2]
[375934751,1753789865854,-1155.43,0.00020547,2]
[375934752,1753789865864,-460.0,0.00020547,2]
[375934753,1753789865873,-460.0,0.00020547,2]
[375934754,1753789865883,-4863.03,0.00020547,2]
[375934755,1753789865893,-460.0,0.00020547,2]
[375934756,1753789865903,-460.0,0.00020547,2]
[375934757,1753789866058,-3727.89,0.00020547,2]
[375934758,1753789866068,-460.0,0.00020547,2]
[375934759,1753789866078,-151.0,0.00020547,2]
[375934760,1753789866088,-726.78,0.00020547,2]
[375934761,1753789866098,-460.0,0.00020547,2]
[375934762,1753789866108,-460.0,0.00020547,2]
[375934763,1753789866118,-460.0,0.00020547,2]
[375934764,1753789866127,-460.0,0.00020547,2]
[375934765,1753789866137,-945.31,0.00020547,2]
[375934766,1753789866147,-460.0,0.00020547,2]
[375934767,1753789866156,-460.0,0.00020547,2]
[375934768,1753789866165,-699.09,0.00020547,2]
[375934769,1753789866176,-460.0,0.00020547,2]
[375934770,1753789866186,-1744.36,0.00020547,2]
[375934771,1753789866195,-897.47,0.00020547,2]
[375934772,1753789866205,-460.0,0.00020547,2]
[375934773,1753789866215,-460.0,0.00020547,2]
[375934774,1753789866224,-651.49,0.00020547,2]
[375934775,1753789866233,-460.0,0.00020547,2]
[375934776,1753789866243,-152.279696,0.00020547,2]
[375934777,1753789866252,-460.0,0.00020547,2]
[375934778,1753789866262,-460.0,0.00020547,2]
[375934779,1753789866271,-460.0,0.00020547,2]
[375934780,1753789866281,-460.0,0.00020547,2]
[375934781,1753789866291,-3167.08,0.00020547,2]
[375934782,1753789866301,-2562.78,0.00020547,2]
[375934783,1753789866311,-460.0,0.00020547,2]
[375934784,1753789866320,-466.73039612,0.00020547,2]
[375934785,1753789866329,-460.0,0.00020547,2]
[375934786,1753789866339,-460.0,0.00020547,2]
[375934787,1753789866349,-460.0,0.00020547,2]
[375934788,1753789866358,-460.0,0.00020547,2]
[375934789,1753789866368,-460.0,0.00020547,2]
[375934790,1753789866377,-4276.31,0.00020547,2]
[375934791,1753789866387,-460.0,0.00020547,2]
[375934792,1753789866397,-308.37767072,0.00020547,2]
[375934793,1753789866406,-270.52012685,0.00020547,2]
[375934794,1753789866415,-460.0,0.00020547,2]
[375934795,1753789866425,-460.0,0.00020547,2]
[375934796,1753789866434,-460.0,0.00020547,2]
[375934797,1753789866444,-460.0,0.00020547,2]
[375934798,1753789866453,-1229.01,0.00020547,2]
[375934799,1753789866463,-467.34716009,0.00020547,2]
[375934800,1753789866472,-1266.27,0.00020547,2]
[375934801,1753789866483,-460.0,0.00020547,2]
[375934802,1753789866492,-460.0,0.00020547,2]
[375934803,1753789866502,-460.0,0.00020547,2]
[375934804,1753789866511,-460.0,0.00020547,2]
[375934805,1753789866521,-538.69,0.00020547,2]
[375934806,1753789866530,-460.0,0.00020547,2]
[375934807,1753789866539,-306.76883906,0.00020547,2]
[375934808,1753789866551,-460.0,0.00020547,2]
[375934809,1753789866561,-249.79439171,0.00020547,2]
[375934810,1753789866570,-460.0,0.00020547,2]
[375934811,1753789866579,-2580.95,0.00020547,2]
[375934812,1753789866591,-598.73,0.00020547,2]
[375934813,1753789866602,-1327.36,0.00020547,2]
[375934814,1753789866613,-375.11701123,0.00020547,2]
[375934815,1753789866624,-3072.41,0.00020547,2]
[375934816,1753789866633,-833.59,0.00020547,2]
[375934817,1753789866643,-460.0,0.00020547,2]
[375934818,1753789866653,-460.0,0.00020547,2]
[375934819,1753789866664,-460.0,0.00020547,2]
[375934820,1753789866675,-460.0,0.00020547,2]
[375934821,1753789866686,-460.0,0.00020547,2]
[375934822,1753789866696,-260.641885,0.00020547,2]
[375934823,1753789866705,-460.0,0.00020547,2]
[375934824,1753789866716,-460.0,0.00020547,2]
[375934825,1753789866725,-573.24,0.00020547,2]
[375934826,1753789866735,-737.52,0.00020547,2]
[375934827,1753789866747,-627.39,0.00020547,2]
[375934828,1753789866756,-260.641885,0.00020547,2]
[375934829,1753789866767,-460.0,0.00020547,2]
[375934830,1753789866777,-460.0,0.00020547,2]
[375934831,1753789866787,-1255.62,0.00020547,2]
[375934832,1753789866798,-460.0,0.00020547,2]
[375934833,1753789866807,-670.19,0.00020547,2]
[375934834,1753789866816,-914.73,0.00020547,2]
[375934835,1753789866826,-460.0,0.00020547,2]
[375934836,1753789866836,-1060.03,0.00020547,2]
[375934837,1753789866846,-8381.75,0.00020547,2]
[375934838,1753789866857,-460.0,0.00020547,2]
[375934839,1753789866866,-460.0,0.00020547,2]
[375934840,1753789866875,-3580.4,0.00020547,2]
[375934841,1753789866885,-460.0,0.00020547,2]
[375934842,1753789866894,-233.38921447,0.00020547,2]
[375934843,1753789866903,-460.0,0.00020547,2]
[375934844,1753789866912,-1186.04,0.00020547,2]
[375934845,1753789866922,-460.0,0.00020547,2]
[375934846,1753789866931,-460.0,0.00020547,2]
[375934847,1753789866941,-460.0,0.00020547,2]
[375934848,1753789866950,-460.0,0.00020547,2]
[375934849,1753789866959,-4077.9,0.00020547,2]
[375934850,1753789866969,-879.31,0.00020547,2]
[375934851,1753789866978,-464.55114607,0.00020547,2]
[375934852,1753789866988,-1017.32,0.00020547,2]
[375934853,1753789866997,-500.0,0.00020548,2]
[375934854,1753789867007,-3796.46724745,0.00020561,2]